bitfinex/quotes_BTCUSD_20251015
["timestamp","ask_amount","ask_price","bid_price","bid_amount"]
[1760537882788,0.51814197,112270.0,112250.0,0.64292359]
[1760537883042,0.22144234,112290.0,112270.0,0.17814197]
[1760537883240,0.17812611,112280.0,112260.0,0.17813112]
[1760537883456,0.17814197,112270.0,112260.0,0.17813112]
[1760537883590,0.17812611,112280.0,112260.0,0.17813112]
[1760537883796,0.17812611,112280.0,112270.0,0.11448]
[1760537884003,0.34,112270.0,112260.0,0.17813112]
[1760537884209,0.01054899,112290.0,112280.0,0.17812611]
[1760537884427,0.19732314,112290.0,112280.0,0.11448]
[1760537884849,0.53732314,112290.0,112280.0,0.11448]
[1760537885076,0.51812611,112280.0,112270.0,0.17813522]
[1760537885291,0.51812611,112280.0,112270.0,0.29262197]
[1760537885715,0.51812611,112280.0,112270.0,0.17814197]
[1760537885925,0.51812611,112280.0,112270.0,0.29878226]
[1760537886338,0.51812611,112280.0,112270.0,0.18430226]
[1760537886568,0.34,112280.0,112270.0,0.64890629]
[1760537886791,0.34,112280.0,112270.0,0.85307641]
[1760537887222,0.51812611,112280.0,112270.0,0.67499238]
[1760537887435,0.34,112280.0,112270.0,0.78947238]
[1760537887651,0.51811025,112290.0,112280.0,0.17812006]
[1760537887866,0.51811025,112290.0,112280.0,0.29260006]
[1760537888340,0.52849017,112290.0,112280.0,0.11448]
[1760537888563,0.17812611,112280.0,112270.0,0.48969012]
[1760537888776,0.17812611,112280.0,112270.0,0.78231209]
[1760537888986,0.17812611,112280.0,112270.0,0.51448]
[1760537889232,0.17812611,112280.0,112270.0,0.4]
[1760537889478,0.17815784,112260.0,112250.0,0.17832216]
[1760537889694,0.17815784,112260.0,112250.0,0.00014941]
[1760537889909,0.51815784,112260.0,112250.0,0.40014941]
[1760537890349,0.51815784,112260.0,112250.0,0.00014941]
[1760537890572,0.51815784,112260.0,112250.0,0.11462941]
[1760537890783,0.67747934,112260.0,112250.0,0.00014941]
[1760537890990,0.67747934,112260.0,112250.0,0.11462941]
[1760537891409,0.67747934,112260.0,112250.0,0.00014941]
[1760537891627,0.67747934,112260.0,112250.0,0.11462941]
[1760537891850,0.67747934,112260.0,112250.0,0.11562941]
[1760537892064,0.67747934,112260.0,112250.0,0.11462941]
[1760537892288,0.51821651,112240.0,112210.0,0.1198721]
[1760537892501,0.17821908,112230.0,112220.0,0.11448]
[1760537892703,0.17820547,112230.0,112220.0,0.69299236]
[1760537892917,0.52712598,112240.0,112220.0,0.57822135]
[1760537893190,0.51818959,112240.0,112230.0,0.29268547]
[1760537893603,0.17817446,112250.0,112240.0,0.17818959]
[1760537893817,0.51817371,112250.0,112230.0,0.17820547]
[1760537894029,0.51817371,112250.0,112240.0,0.29266959]
[1760537894239,0.51817371,112250.0,112240.0,0.11448]
[1760537894464,0.51817371,112250.0,112240.0,0.11658628]
[1760537894674,0.51817371,112250.0,112240.0,0.11448]
[1760537894888,0.67838777,112250.0,112240.0,0.001]
[1760537895106,0.67838777,112250.0,112240.0,0.11548]
[1760537895345,0.67838777,112250.0,112240.0,0.11648]
[1760537896069,0.67838777,112250.0,112240.0,0.11548]
[1760537896313,0.67838777,112250.0,112240.0,0.11648]
[1760537896529,0.51822135,112220.0,112210.0,0.11462943]
[1760537896740,0.58786403,112220.0,112210.0,0.11462943]
[1760537897167,0.58786403,112220.0,112210.0,0.1149674]
[1760537897379,0.59806784,112220.0,112210.0,0.0004874]
[1760537897590,0.59806784,112220.0,112210.0,0.11759748]
[1760537898021,0.59806784,112220.0,112210.0,0.12059748]
[1760537899148,0.59806784,112220.0,112210.0,0.00611748]
[1760537899366,0.59806784,112220.0,112210.0,0.13023431]
[1760537899795,0.59806784,112220.0,112210.0,0.01575431]
[1760537900003,0.59806784,112220.0,112210.0,0.13023431]
[1760537900641,0.59806784,112220.0,112210.0,0.01575431]
[1760537900910,0.59806784,112220.0,112210.0,0.13023431]
[1760537901345,0.59806784,112220.0,112210.0,0.01575431]
[1760537901560,0.68775796,112220.0,112210.0,0.01278626]
[1760537902208,0.72394024,112220.0,112210.0,0.01278626]
[1760537902419,0.72394024,112220.0,112210.0,0.01078626]
[1760537903065,0.72394024,112220.0,112210.0,0.00978626]
[1760537903284,0.72394024,112220.0,112210.0,0.01078626]
[1760537903798,0.72394024,112220.0,112210.0,0.00978626]
[1760537904215,0.72394024,112220.0,112210.0,0.01078626]
[1760537904635,0.17825311,112200.0,112190.0,0.11488]
[1760537904853,0.67977596,112200.0,112190.0,0.00054946]
[1760537907049,0.67977596,112200.0,112190.0,0.00154946]
[1760537907922,0.64412551,112200.0,112190.0,0.00154946]
[1760537909101,0.51825311,112200.0,112190.0,0.00154946]
[1760537909318,0.17825311,112200.0,112190.0,0.00154946]
[1760537909524,0.17825139,112210.0,112190.0,0.29429846]
[1760537909739,0.2669789,112220.0,112190.0,0.17981846]
[1760537909947,0.19706535,112210.0,112200.0,0.11448]
[1760537910156,0.57361067,112210.0,112200.0,0.11448]
[1760537910356,0.51825311,112200.0,112190.0,0.57997663]
[1760537910570,0.51825311,112200.0,112190.0,0.69445663]
[1760537910773,0.51825311,112200.0,112190.0,0.51618827]
[1760537911215,0.51825311,112200.0,112190.0,0.40170827]
[1760537911417,0.51825311,112200.0,112190.0,0.51718827]
[1760537912436,0.51825311,112200.0,112190.0,0.58097727]
[1760537912864,0.51825311,112200.0,112190.0,0.69545727]
[1760537913269,0.51825311,112200.0,112190.0,0.29545727]
[1760537913699,0.51825311,112200.0,112190.0,0.69545727]
[1760537913910,0.01020381,112220.0,112210.0,0.17823723]
[1760537914117,0.17822135,112220.0,112210.0,0.11448]
[1760537914331,0.17822135,112220.0,112210.0,0.11537131]
[1760537914540,0.17822135,112220.0,112210.0,0.00089131]
[1760537914757,0.51822135,112220.0,112210.0,0.00089131]
[1760537914994,0.51822135,112220.0,112200.0,0.00057936]
[1760537914995,0.53706535,112210.0,112200.0,0.00057936]
[1760537915224,0.72559719,112210.0,112200.0,0.00057936]
[1760537915643,0.74475979,112210.0,112200.0,0.00057936]
[1760537915872,0.74833364,112210.0,112200.0,0.00057936]
[1760537918500,0.21443539,112200.0,112190.0,0.00054946]
[1760537918712,0.30412551,112200.0,112190.0,0.00054946]
[1760537918899,0.39380759,112200.0,112190.0,0.00054946]
[1760537920449,0.73380759,112200.0,112190.0,0.00054946]
[1760537920710,0.75297019,112200.0,112190.0,0.00054946]
[1760537923159,0.73380759,112200.0,112190.0,0.00054946]
[1760537923370,0.17825311,112200.0,112190.0,0.00054946]
[1760537923901,0.17823723,112210.0,112190.0,0.00054946]
[1760537924105,0.17825311,112200.0,112190.0,0.11502946]
[1760537924317,0.17825311,112200.0,112190.0,0.00112889]
[1760537924527,0.30412551,112200.0,112190.0,0.00112889]
[1760537924748,0.35427797,112200.0,112190.0,0.00112889]
[1760537924992,0.69427797,112200.0,112190.0,0.00112889]
[1760537925198,0.67725757,112200.0,112190.0,0.00112889]
[1760537925419,0.71343985,112200.0,112190.0,0.00112889]
[1760537927403,0.66328739,112200.0,112190.0,0.00112889]
[1760537928583,0.68715673,112200.0,112190.0,0.00112889]
[1760537929226,0.48310595,112200.0,112190.0,0.00112889]
[1760537929451,0.63748972,112200.0,112190.0,0.00112889]
[1760537930502,0.60130744,112200.0,112190.0,0.00112889]
[1760537930925,0.72051159,112200.0,112190.0,0.00112889]
[1760537936653,5.72051159,112200.0,112190.0,1e-08]
[1760537936872,5.76102661,112200.0,112190.0,1e-08]
[1760537937783,5.7656841,112200.0,112190.0,1e-08]
[1760537937999,5.76668388,112200.0,112190.0,1e-08]
[1760537938223,0.55446717,112180.0,112170.0,1e-08]
[1760537938439,0.17833259,112150.0,112140.0,0.0004]
[1760537938662,0.26802271,112150.0,112140.0,0.00090039]
[1760537940275,0.17833259,112150.0,112140.0,0.00090039]
[1760537940512,0.51833259,112150.0,112140.0,0.00090039]
[1760537940983,0.60802271,112150.0,112140.0,0.00090039]
[1760537941255,0.68665807,112150.0,112140.0,0.00090039]
[1760537941986,0.73313042,112150.0,112140.0,0.00090039]
[1760537942424,0.73313042,112150.0,112120.0,0.0004]
[1760537942425,0.17836439,112130.0,112120.0,0.0004]
[1760537942652,0.30473581,112130.0,112120.0,0.0004]
[1760537942860,0.64473581,112130.0,112120.0,0.0004]
[1760537943096,0.72704567,112130.0,112120.0,0.0004]
[1760537943544,0.78676706,112130.0,112120.0,0.0004]
[1760537943771,0.5183803,112120.0,112110.0,0.0004]
[1760537943999,0.6272624,112120.0,112110.0,0.0004]
[1760537944249,0.66344468,112120.0,112110.0,0.0004]
[1760537944471,0.75312676,112120.0,112110.0,0.00503897]
[1760537945814,0.55459441,112100.0,112090.0,0.0004]
[1760537946043,0.64428453,112100.0,112090.0,0.0004]
[1760537946709,0.60810225,112100.0,112090.0,0.0004]
[1760537946935,0.59706338,112100.0,112090.0,0.0004]
[1760537948250,0.59706338,112100.0,112090.0,0.11488]
[1760537948251,0.51841213,112100.0,112090.0,0.11488]
[1760537948470,0.51841213,112100.0,112090.0,0.0004]
[1760537948693,0.51841213,112100.0,112090.0,0.1173169]
[1760537948920,0.34,112100.0,112090.0,0.29330804]
[1760537949442,0.26806328,112120.0,112100.0,0.17839861]
[1760537949668,0.17839621,112110.0,112090.0,0.67743956]
[1760537949897,0.57021737,112110.0,112100.0,0.11448]
[1760537950121,0.51841213,112100.0,112090.0,0.4004]
[1760537950341,0.51841213,112100.0,112090.0,0.51488]
[1760537950569,0.51841213,112100.0,112090.0,0.4004]
[1760537950789,0.51841213,112100.0,112090.0,0.51488]
[1760537951012,0.59327508,112100.0,112090.0,0.51488]
[1760537951229,0.59327508,112100.0,112090.0,0.11488]
[1760537951683,0.59327508,112100.0,112090.0,0.11704037]
[1760537952137,0.59327508,112100.0,112090.0,0.11604037]
[1760537952348,0.59327508,112100.0,112090.0,0.00256037]
[1760537952573,0.59327508,112100.0,112090.0,0.11704037]
[1760537952790,0.59327508,112100.0,112090.0,0.11804037]
[1760537953017,0.59327508,112100.0,112090.0,0.00256037]
[1760537953471,0.6829652,112100.0,112090.0,0.00356037]
[1760537954364,0.6829652,112100.0,112090.0,0.00256037]
[1760537954847,0.6829652,112100.0,112090.0,0.00356037]
[1760537955281,0.6829652,112100.0,112090.0,0.00256037]
[1760537955716,0.6829652,112100.0,112090.0,0.00156037]
[1760537957730,0.6829652,112100.0,112090.0,0.00256037]
[1760537957942,0.6829652,112100.0,112090.0,0.11804037]
[1760537958380,0.6829652,112100.0,112090.0,0.00356037]
[1760537958610,0.6829652,112100.0,112090.0,0.11804037]
[1760537958839,0.71914748,112100.0,112090.0,0.00356037]
[1760537959996,0.71914748,112100.0,112090.0,0.00256037]
[1760537960638,0.71914748,112100.0,112090.0,0.00156037]
[1760537961305,0.59327508,112100.0,112090.0,0.17998841]
[1760537961531,0.2302201,112110.0,112100.0,0.17841213]
[1760537961746,0.17839621,112110.0,112100.0,0.29289213]
[1760537961959,0.17839621,112110.0,112100.0,0.29347227]
[1760537962179,0.34,112110.0,112100.0,0.29347227]
[1760537962453,0.18778162,112130.0,112120.0,0.1783803]
[1760537962686,0.20241163,112130.0,112120.0,0.11448]
[1760537962907,0.1783803,112120.0,112110.0,0.00065872]
[1760537963118,0.1783803,112120.0,112110.0,0.29356978]
[1760537963335,0.1783803,112120.0,112110.0,0.29287621]
[1760537963553,0.1783803,112120.0,112110.0,0.11448]
[1760537963809,0.21735131,112120.0,112110.0,0.17839621]
[1760537964024,0.21735131,112120.0,112110.0,0.29287621]
[1760537964240,0.03897101,112120.0,112110.0,0.29287621]
[1760537964674,0.1783803,112120.0,112110.0,0.17839621]
[1760537964888,0.1783803,112120.0,112110.0,0.29387621]
[1760537965552,0.1783803,112120.0,112110.0,0.18139621]
[1760537965777,0.1783803,112120.0,112110.0,0.29587621]
[1760537966492,0.1783803,112120.0,112110.0,0.11748]
[1760537966696,0.1783803,112120.0,112110.0,0.69645247]
[1760537966938,0.1783803,112120.0,112110.0,0.69587621]
[1760537967439,0.1783803,112120.0,112110.0,0.58139621]
[1760537967683,0.21735131,112120.0,112110.0,0.58139621]
[1760537967903,0.55735131,112120.0,112110.0,0.403]
[1760537968123,0.57652555,112120.0,112110.0,0.003]
[1760537968351,0.70239795,112120.0,112110.0,0.003]
[1760537968575,0.57652555,112120.0,112110.0,0.003]
[1760537968793,0.57652555,112120.0,112110.0,0.11448]
[1760537969015,0.51839621,112110.0,112100.0,0.0011667]
[1760537969237,0.59388839,112110.0,112100.0,0.1156067]
[1760537969455,0.59388839,112110.0,112100.0,0.29401883]
[1760537969679,0.21165096,112130.0,112110.0,0.17939621]
[1760537969915,0.34,112120.0,112110.0,0.17839621]
[1760537970135,0.53757943,112120.0,112110.0,0.11544]
[1760537970638,0.17839621,112110.0,112100.0,0.00058014]
[1760537970854,0.24999377,112110.0,112100.0,0.29343227]
[1760537971068,0.07159756,112110.0,112100.0,0.29343227]
[1760537971287,0.53757943,112120.0,112100.0,0.17899227]
[1760537971506,0.17839621,112110.0,112100.0,0.29343227]
[1760537971741,0.17839621,112110.0,112100.0,0.11502014]
[1760537972170,0.17839621,112110.0,112100.0,0.17899227]
[1760537972390,0.19762789,112110.0,112100.0,0.29343227]
[1760537972610,0.07398775,112110.0,112100.0,0.29443227]
[1760537972821,0.5183803,112120.0,112100.0,0.29343227]
[1760537973047,0.53761126,112120.0,112110.0,0.17839621]
[1760537973271,0.35923096,112120.0,112110.0,0.29283621]
[1760537973505,0.01923096,112120.0,112110.0,0.29283621]
[1760537973962,0.19761126,112120.0,112110.0,0.17839621]
[1760537974212,0.23853748,112120.0,112110.0,0.29283621]
[1760537974436,0.57853748,112120.0,112110.0,0.4]
[1760537974655,0.17839621,112110.0,112100.0,0.00258014]
[1760537975152,0.17839621,112110.0,112100.0,0.00058014]
[1760537975453,0.17839621,112110.0,112100.0,0.11502014]
[1760537975454,0.25216648,112110.0,112100.0,0.11502014]
[1760537975663,0.35923591,112120.0,112110.0,0.17839621]
[1760537975877,0.53761621,112120.0,112110.0,0.29283621]
[1760537976085,0.53761621,112120.0,112110.0,0.17839621]
[1760537976295,0.53761621,112120.0,112110.0,0.11444]
[1760537976502,0.53761621,112120.0,112110.0,0.11644]
[1760537976717,0.61015599,112120.0,112110.0,0.11644]
[1760537976980,0.61015599,112120.0,112110.0,0.17839621]
[1760537977230,0.27015599,112120.0,112110.0,0.29383621]
[1760537977603,0.61015599,112120.0,112110.0,0.17939621]
[1760537977823,0.61015599,112120.0,112110.0,0.29383621]
[1760537978321,0.61015599,112120.0,112110.0,0.29483621]
[1760537978541,0.59092008,112120.0,112110.0,0.002]
[1760537978758,0.59092008,112120.0,112110.0,0.11644]
[1760537979194,0.59092008,112120.0,112110.0,0.51644]
[1760537979419,0.59092008,112120.0,112110.0,0.402]
[1760537979645,0.55987628,112120.0,112110.0,0.51644]
[1760537979922,0.55987628,112120.0,112110.0,0.002]
[1760537980151,0.55987628,112120.0,112110.0,0.11644]
[1760537980358,0.18778162,112130.0,112110.0,0.29483621]
[1760537980359,0.18778294,112130.0,112110.0,0.29483621]
[1760537980591,0.34,112120.0,112110.0,0.18039621]
[1760537980811,0.34,112120.0,112110.0,0.29383621]
[1760537981030,0.5183803,112120.0,112110.0,0.29383621]
[1760537981240,0.34,112120.0,112110.0,0.69383621]
[1760537981468,0.5183803,112120.0,112110.0,0.57939621]
[1760537981683,0.5183803,112120.0,112110.0,0.69483621]
[1760537982366,0.58899662,112120.0,112110.0,0.57939621]
[1760537982579,0.58899662,112120.0,112110.0,0.69283621]
[1760537982800,0.5183803,112120.0,112110.0,0.69383621]
[1760537983017,0.5183803,112120.0,112110.0,0.58039621]
[1760537983239,0.5183803,112120.0,112110.0,0.69483621]
[1760537983464,0.34,112120.0,112110.0,0.69279621]
[1760537983687,0.5183803,112120.0,112110.0,0.69379621]
[1760537983902,0.58899662,112120.0,112110.0,0.57939621]
[1760537984126,0.58899662,112120.0,112110.0,0.29379621]
[1760537984374,0.58899662,112120.0,112110.0,0.001]
[1760537984611,0.58899662,112120.0,112110.0,0.1154]
[1760537984851,0.58899662,112120.0,112110.0,0.001]
[1760537985090,0.58899662,112120.0,112110.0,0.003]
[1760537985359,0.34,112120.0,112110.0,0.29579621]
[1760537985570,0.5183803,112120.0,112110.0,0.29479621]
[1760537985860,0.5183803,112120.0,112110.0,0.29279621]
[1760537986123,0.5183803,112120.0,112110.0,0.1164]
[1760537986380,0.5183803,112120.0,112110.0,0.17839621]
[1760537986587,0.5183803,112120.0,112110.0,0.1154]
[1760537986811,0.58899662,112120.0,112110.0,0.1164]
[1760537987032,0.58899662,112120.0,112110.0,0.002]
[1760537987259,0.67868674,112120.0,112110.0,0.002]
[1760537987714,0.69792886,112120.0,112110.0,0.002]
[1760537987943,0.73411114,112120.0,112110.0,0.002]
[1760537988401,0.75081744,112120.0,112110.0,0.001]
[1760537989063,0.55457849,112110.0,112100.0,0.00058014]
[1760537989282,0.76989911,112110.0,112100.0,1e-08]
[1760537989731,0.75319281,112110.0,112100.0,1e-08]
[1760537989945,0.66351073,112110.0,112100.0,1e-08]
[1760537990634,0.66351073,112110.0,112100.0,0.11440001]
[1760537991086,0.66351073,112110.0,112100.0,1e-08]
[1760537991316,0.60808633,112110.0,112100.0,0.11440001]
[1760537992428,0.17839621,112110.0,112100.0,0.11440001]
[1760537992663,0.17839621,112110.0,112100.0,0.17841214]
[1760537992892,0.17838071,112120.0,112100.0,0.64419123]
[1760537993086,0.17838071,112120.0,112100.0,0.75959123]
[1760537993347,0.17839621,112110.0,112100.0,0.00200001]
[1760537993605,0.17839621,112110.0,112100.0,0.29381214]
[1760537993824,0.51838071,112120.0,112110.0,0.17839621]
[1760537994038,0.58899707,112120.0,112110.0,0.17839621]
[1760537994254,0.5183803,112120.0,112110.0,0.29279621]
[1760537995569,0.5183803,112120.0,112110.0,0.29379621]
[1760537995791,0.34,112120.0,112110.0,0.29379621]
[1760537996026,0.5183803,112120.0,112110.0,0.29379621]
[1760537996251,0.34,112120.0,112110.0,0.29379621]
[1760537996480,0.5183803,112120.0,112110.0,0.29479621]
[1760537997150,0.5183803,112120.0,112110.0,0.69479621]
[1760537997581,0.34,112120.0,112110.0,0.69479621]
[1760537997797,0.34,112120.0,112110.0,1.1605753]
[1760537998032,0.5183803,112120.0,112110.0,0.67008633]
[1760537998256,0.34,112120.0,112110.0,0.78448633]
[1760537998925,0.34,112120.0,112110.0,1.13586542]
[1760537999150,0.00049902,112130.0,112120.0,0.1783803]
[1760537999379,0.00049902,112130.0,112110.0,0.402]
[1760537999603,0.17886499,112130.0,112120.0,0.1146135]
[1760537999826,0.17886499,112130.0,112120.0,0.2929938]
[1760538000046,0.00049902,112130.0,112120.0,0.75855939]
[1760538000266,0.00049902,112130.0,112120.0,0.85024951]
[1760538000731,0.00049902,112130.0,112120.0,0.20609012]
[1760538000732,0.17886341,112130.0,112120.0,0.20609012]
[1760538000958,0.51886341,112130.0,112120.0,0.002]
[1760538001221,0.60855353,112130.0,112120.0,0.002]
[1760538001443,0.72342609,112130.0,112120.0,0.00988]
[1760538001661,0.72342609,112130.0,112120.0,0.11324]
[1760538001887,0.51839621,112110.0,112100.0,1e-08]
[1760538002133,0.51839621,112110.0,112100.0,0.11436001]
[1760538002804,0.51839621,112110.0,112100.0,1e-08]
[1760538003024,0.58807528,112110.0,112100.0,0.11436001]
[1760538003238,0.58807528,112110.0,112100.0,1e-08]
[1760538003463,0.58807528,112110.0,112100.0,0.11436001]
[1760538003689,0.6777654,112110.0,112100.0,1e-08]
[1760538003911,0.6777654,112110.0,112100.0,0.11436001]
[1760538004396,0.6777654,112110.0,112100.0,0.00100001]
[1760538004620,0.71394768,112110.0,112100.0,1e-08]
[1760538004840,0.71394768,112110.0,112100.0,0.00100001]
[1760538005034,0.71394768,112110.0,112100.0,0.00200001]
[1760538005531,0.71394768,112110.0,112100.0,0.00100001]
[1760538005746,0.71394768,112110.0,112100.0,1e-08]
[1760538005971,0.71394768,112110.0,112100.0,0.00100001]
[1760538006428,0.71394768,112110.0,112100.0,1e-08]
[1760538006642,0.64426861,112110.0,112100.0,1e-08]
[1760538006854,0.60808633,112110.0,112100.0,1e-08]
[1760538007072,0.60808633,112110.0,112100.0,0.11436001]
[1760538007292,0.60808633,112110.0,112100.0,1e-08]
[1760538007504,0.64426861,112110.0,112100.0,1e-08]
[1760538007720,0.72653492,112110.0,112100.0,1e-08]
[1760538008172,0.60808633,112110.0,112100.0,1e-08]
[1760538008381,0.60808633,112110.0,112100.0,0.11636001]
[1760538008854,0.60808633,112110.0,112100.0,0.00200001]
[1760538009078,0.60808633,112110.0,112100.0,0.11636001]
[1760538009971,0.60808633,112110.0,112100.0,0.00200001]
[1760538010154,0.68673441,112110.0,112100.0,0.00200001]
[1760538010394,0.68673441,112110.0,112100.0,0.11636001]
[1760538010614,0.72291669,112110.0,112100.0,0.00200001]
[1760538010829,0.55459441,112100.0,112090.0,0.0004]
[1760538011268,0.64428453,112100.0,112090.0,0.00098022]
[1760538012360,0.64428453,112100.0,112090.0,0.00198022]
[1760538013494,0.60810225,112100.0,112090.0,0.00098022]
[1760538013714,0.26810225,112100.0,112090.0,0.29376826]
[1760538013942,0.26810225,112100.0,112090.0,0.00098022]
[1760538014156,0.63736374,112100.0,112090.0,0.00098022]
[1760538014401,0.63736374,112100.0,112090.0,0.11534022]
[1760538014614,0.63736374,112100.0,112090.0,0.11634022]
[1760538014837,0.63736374,112100.0,112090.0,0.00298022]
[1760538015062,0.63736374,112100.0,112090.0,0.00198022]
[1760538015287,0.63736374,112100.0,112090.0,0.11634022]
[1760538015533,0.67354602,112100.0,112090.0,0.00298022]
[1760538016531,0.60810225,112100.0,112090.0,0.00298022]
[1760538016673,0.60810225,112100.0,112090.0,0.11634022]
[1760538016892,0.60810225,112100.0,112090.0,0.00198022]
[1760538017133,0.64428453,112100.0,112090.0,0.00198022]
[1760538017345,0.64428453,112100.0,112090.0,0.00098022]
[1760538017566,0.73396661,112100.0,112090.0,0.00098022]
[1760538018257,0.55461032,112090.0,112080.0,0.2]
[1760538018472,0.64430044,112090.0,112080.0,0.2]
[1760538019130,0.54430044,112090.0,112080.0,0.2]
[1760538019568,0.54479915,112090.0,112080.0,0.2]
[1760538019790,0.57297488,112090.0,112080.0,0.2]
[1760538020015,0.54479915,112090.0,112080.0,0.2]
[1760538020431,0.54479915,112090.0,112080.0,0.202]
[1760538021582,0.54479915,112090.0,112080.0,0.31636]
[1760538021794,0.54479915,112090.0,112080.0,0.202]
[1760538022011,0.61712028,112090.0,112080.0,0.202]
[1760538022231,0.54479915,112090.0,112080.0,0.202]
[1760538022448,0.54479915,112090.0,112080.0,0.31636]
[1760538023100,0.54479915,112090.0,112080.0,0.202]
[1760538024332,0.55462624,112080.0,112070.0,1.11476]
[1760538024584,0.64431636,112080.0,112070.0,1.0004]
[1760538025026,0.64431636,112080.0,112070.0,0.5414549]
[1760538025654,0.60813408,112080.0,112070.0,0.6558149]
[1760538025905,0.60813408,112080.0,112070.0,0.5414549]
[1760538026127,0.67684016,112080.0,112070.0,0.5414549]
[1760538026347,0.67684016,112080.0,112070.0,0.6558149]
[1760538026572,0.71302244,112080.0,112070.0,0.5414549]
[1760538026998,0.71302244,112080.0,112070.0,0.6568149]
[1760538027223,0.71302244,112080.0,112070.0,0.5424549]
[1760538027874,0.71302244,112080.0,112070.0,0.5414549]
[1760538028978,5.71302244,112080.0,112070.0,0.11837263]
[1760538029423,5.71302244,112080.0,112070.0,1e-08]
[1760538029879,5.73223765,112080.0,112070.0,1e-08]
[1760538030320,5.71402244,112080.0,112070.0,1e-08]
[1760538030550,5.71302244,112080.0,112070.0,1e-08]
[1760538031023,5.71402244,112080.0,112070.0,1e-08]
[1760538031472,0.71402244,112080.0,112070.0,1e-08]
[1760538031693,0.30431636,112080.0,112070.0,1e-08]
[1760538031979,0.26813408,112080.0,112070.0,1e-08]
[1760538032204,0.30431636,112080.0,112070.0,1e-08]
[1760538032425,0.26913408,112080.0,112070.0,1e-08]
[1760538032642,0.30631636,112080.0,112070.0,1e-08]
[1760538032831,0.71784067,112080.0,112070.0,1e-08]
[1760538033286,0.71784067,112080.0,112070.0,0.00100001]
[1760538033734,0.71684067,112080.0,112070.0,0.00100001]
[1760538034202,0.71684067,112080.0,112070.0,0.00200001]
[1760538034663,0.71684067,112080.0,112070.0,1e-08]
[1760538035107,0.34065839,112080.0,112070.0,1e-08]
[1760538035363,0.26813408,112080.0,112070.0,1e-08]
[1760538035593,0.00049871,112090.0,112070.0,0.29281972]
[1760538035817,0.17892675,112090.0,112080.0,0.17919727]
[1760538036040,0.17892675,112090.0,112080.0,0.29280396]
[1760538036304,0.03365044,112090.0,112080.0,0.29280396]
[1760538036543,0.00049871,112090.0,112080.0,0.29280396]
[1760538036755,0.00049871,112090.0,112080.0,0.38249408]
[1760538037033,0.00049871,112090.0,112080.0,0.98963302]
[1760538037303,0.00049871,112090.0,112080.0,0.38249408]
[1760538037937,0.00049871,112090.0,112080.0,0.38349408]
[1760538038395,0.00049871,112090.0,112080.0,0.38249408]
[1760538038831,0.00049871,112090.0,112080.0,0.27013408]
[1760538039083,0.00049871,112090.0,112080.0,0.99163302]
[1760538039294,0.00049871,112090.0,112080.0,0.38449408]
[1760538039503,0.00049871,112090.0,112080.0,1.10599302]
[1760538039723,0.00049871,112090.0,112080.0,1.39163302]
[1760538039936,0.00049871,112090.0,112080.0,1.50599302]
[1760538040148,0.00049871,112090.0,112080.0,1.50399302]
[1760538040354,0.00049871,112090.0,112080.0,1.50599302]
[1760538041017,1e-08,112090.0,112080.0,7.2821753]
[1760538041242,1e-08,112090.0,112080.0,7.93514635]
[1760538041474,1e-08,112090.0,112080.0,8.04946635]
[1760538041920,1e-08,112090.0,112080.0,8.05924017]
[1760538042144,1e-08,112090.0,112080.0,8.12687347]
[1760538043016,1e-08,112090.0,112080.0,7.94492017]
[1760538043260,1e-08,112090.0,112080.0,8.05924017]
[1760538043710,1e-08,112090.0,112080.0,7.33774123]
[1760538043928,1e-08,112090.0,112080.0,7.94492017]
[1760538044366,1e-08,112090.0,112080.0,8.05924017]
[1760538044581,0.0717521,112120.0,112110.0,0.89989515]
[1760538044794,0.0717521,112120.0,112110.0,0.92565867]
[1760538045014,0.0717521,112120.0,112110.0,1.10405488]
[1760538045236,0.07560722,112140.0,112130.0,0.17836439]
[1760538045453,0.07560722,112140.0,112130.0,0.38237451]
[1760538045670,0.07560722,112140.0,112130.0,0.26805451]
[1760538045882,0.00385512,112140.0,112130.0,0.78237451]
[1760538046744,0.00385512,112140.0,112130.0,0.78233451]
[1760538046958,0.00385512,112140.0,112130.0,0.78333451]
[1760538047179,0.18220361,112140.0,112130.0,0.401]
[1760538047399,0.52220361,112140.0,112130.0,0.51528]
[1760538047836,0.52220361,112140.0,112130.0,0.401]
[1760538048058,0.59225734,112140.0,112130.0,0.51528]
[1760538048275,0.41390885,112140.0,112130.0,0.69364439]
[1760538048483,0.00385512,112140.0,112130.0,0.69464439]
[1760538048728,0.00385512,112140.0,112130.0,0.58036439]
[1760538048949,0.18220361,112140.0,112130.0,0.51528]
[1760538049169,0.52220361,112140.0,112130.0,0.51528]
[1760538049382,0.59225745,112140.0,112130.0,0.51428]
[1760538049623,0.59225745,112140.0,112130.0,0.401]
[1760538049827,0.59225745,112140.0,112130.0,0.51428]
[1760538050053,0.1783803,112120.0,112110.0,0.00014961]
[1760538050290,0.5183803,112120.0,112110.0,0.00014961]
[1760538050544,0.58805618,112120.0,112110.0,0.00014961]
[1760538050979,0.71392858,112120.0,112110.0,0.00014961]
[1760538051625,0.73310309,112120.0,112110.0,0.00014961]
[1760538051853,0.69285682,112120.0,112110.0,0.00014961]
[1760538052502,0.69285682,112120.0,112110.0,0.00114961]
[1760538052752,0.69285682,112120.0,112110.0,0.00014961]
[1760538054125,0.62318094,112120.0,112110.0,0.00014961]
[1760538054364,0.60400643,112120.0,112110.0,0.00014961]
[1760538054614,0.60400643,112120.0,112110.0,0.11442961]
[1760538054831,0.56782415,112120.0,112110.0,0.11442961]
[1760538055277,0.56782415,112120.0,112110.0,0.00014961]
[1760538055489,0.64244441,112120.0,112110.0,0.11442961]
[1760538055948,0.64244441,112120.0,112110.0,0.00014961]
[1760538056166,0.1783803,112120.0,112110.0,0.00014961]
[1760538056379,0.1783803,112120.0,112110.0,0.11442961]
[1760538057012,0.5183803,112120.0,112110.0,0.11442961]
[1760538057256,0.1783785,112130.0,112110.0,0.29282582]
[1760538057477,0.1783803,112120.0,112110.0,0.00014961]
[1760538057700,0.2328843,112120.0,112110.0,0.00014961]
[1760538057931,0.21405618,112120.0,112110.0,0.11442961]
[1760538058609,0.55405618,112120.0,112110.0,0.00014961]
[1760538058827,0.55405618,112120.0,112110.0,0.11442961]
[1760538059053,0.55405618,112120.0,112110.0,0.29282582]
[1760538059272,0.55405618,112120.0,112110.0,0.29278582]
[1760538059499,0.55405618,112120.0,112110.0,0.17854582]
[1760538059716,0.55405618,112120.0,112110.0,0.29278582]
[1760538059937,0.34,112120.0,112110.0,0.29378582]
[1760538060153,0.5183803,112120.0,112110.0,0.29478582]
[1760538060374,0.5183803,112120.0,112110.0,0.18054582]
[1760538060593,0.5183803,112120.0,112110.0,0.11638961]
[1760538060815,0.58805618,112120.0,112110.0,0.11638961]
[1760538061043,0.58805618,112120.0,112110.0,0.00214961]